Cogmind - Beta 10 @@@ ROGUE MODE // 2020.09.15 @ 23:11:55 Player: Mr.Manatee Result: Destroyed by G-47 Trooper with Particle Gun Performance ------------- Evolutions (0) 0 Regions Visited (2) 400 Robots Destroyed (43) 215 Value Destroyed (997) 997 Prototype IDs (5) 100 Alien Tech Used (0) 0 Bonus (21) 21 TOTAL SCORE: 1733 Bonus ------- Follower Combat Kills 21 Cogmind --------- Core Integrity 0/250 Matter 253/300 Energy 100/100 System Corruption 5% Temperature Cool (9) Movement Walking (210) Ox3 Location -10/Mines Parts ------- > --- POWER (1) -------- (None) > --- PROPULSION (2) --- Aluminum Leg Aluminum Leg > --- UTILITY (2) ------ High-capacity Storage Unit High-capacity Storage Unit > --- WEAPON (2) ------- (None) > --- INVENTORY (20) --- Light Treads Aluminum Leg Improved Heat Sink Improved Heat Sink Large Storage Unit High-capacity Matter Pod (189) Signal Interpreter Targeting Computer Targeting Computer Targeting Computer Propulsion Shielding Hacking Suite Hacking Suite Peak State ------------ > --- POWER ------------ Light Nuclear Core > --- PROPULSION ------- Light Treads Light Treads > --- UTILITY ---------- High-capacity Storage Unit High-capacity Storage Unit > --- WEAPON ----------- Particle Gun Assault Rifle > --- INVENTORY -------- Ion Engine Light Ion Engine Light Ion Engine Light Treads Aluminum Leg Aluminum Leg Aluminum Leg Improved Heat Sink Large Storage Unit High-capacity Matter Pod Signal Interpreter Targeting Computer Targeting Computer Targeting Computer Hacking Suite Hacking Suite Small Laser Grenade Launcher [Rating: 12] Favorites ----------- Power Ion Engine Engine Ion Engine Power Core Light Nuclear Core Propulsion Light Treads Treads Light Treads Leg Aluminum Leg Utility High-capacity Storage Unit Storage High-capacity Storage Unit Weapon Assault Rifle Energy Gun Small Laser Ballistic Gun Assault Rifle Ballistic Cannon Light Cannon Launcher Grenade Launcher Build | -11 -10 -10 ------- Run | Scr Mat Min Slots Evolved . | . . . Power . | . . . Propulsion . | . . . Utility . | . . . Weapon . | . . . Parts Attached 37 | 6 15 16 Power 7 | 1 2 4 Engine 6 | 1 2 3 Core 1 | . . 1 Reactor . | . . . Propulsion 10 | 2 5 3 Treads 5 | . 4 1 Leg 5 | 2 1 2 Wheel . | . . . Hover . | . . . Flight . | . . . Utility 6 | 1 5 . Device . | . . . Storage 6 | 1 5 . Processor . | . . . Hackware . | . . . Protection . | . . . Artifact . | . . . Weapon 14 | 2 3 9 Energy Gun 5 | . 1 4 Energy Cannon . | . . . Ballistic Gun 5 | 2 1 2 Ballistic Cannon 1 | . . 1 Launcher 3 | . 1 2 Special Weapon . | . . . Impact Weapon . | . . . Slashing Weapon . | . . . Piercing Weapon . | . . . Special Melee Weapon . | . . . Unidentified Prototypes . | . . . Parts Lost 17 | . 4 13 Power 5 | . 1 4 Propulsion 4 | . 2 2 Utility . | . . . Weapon 8 | . 1 7 Highest Loss Streak 5 | . 4 5 Average Slot Usage (%) 93 | . 96 91 Engine 12 | . 13 11 Core 1 | . . 2 Treads 16 | . 16 16 Leg 11 | . 11 11 Storage 27 | . 26 28 Energy Gun 8 | . 3 11 Ballistic Gun 12 | . 19 7 Launcher 2 | . 4 . Naked Turns . | . . . Heaviest Build 74 | 13 74 74 Greatest Support 40 | 20 40 40 Greatest Overweight (x) 3 | . 1 3 Average Overweight (x) 1 | . . 1 Largest Inventory Capacity 20 | 6 20 20 Average Capacity 17 | 5 15 20 Most Carried 20 | 4 15 20 Average Carried 12 | 2 9 15 Final Capacity 20 | 6 20 20 Final Carried 15 | 4 15 13 Class Distribution -------------------- 78% | Hauler-Mutant 21% | Mutant Dominant Class ---------------- Hauler-Mutant | -10/Materials Hauler-Mutant | -10/Mines Resources | -11 -10 -10 ----------- Run | Scr Mat Min Matter Collected 1484 | 274 414 796 Remotely . | . . . Salvage Created 1528 | 53 731 744 Parts 67 | 2 30 35 Haulers Intercepted 2 | . 2 . Recyclers Shooed 2 | . . 2 Parts Field Recycled . | . . . Retrieved Matter . | . . . Parts Self-Destructed . | . . . Prevented . | . . . Kills | -11 -10 -10 ------- Run | Scr Mat Min Combat Hostiles Destroyed 28 | . 10 18 Guns 18 | . 8 10 Cannons 3 | . . 3 AOE 7 | . 2 5 Classes Destroyed 8 | 1 3 4 Worker 3 | . . 3 Tunneler 1 | . . 1 Hauler 2 | . 2 . Recycler 7 | 1 3 3 Operator 2 | . 2 . Swarmer 3 | . . 3 Grunt 22 | . 10 12 Assembled 3 | . . 3 Best Kill Streak 6 | 1 5 6 Combat Bots Only 4 | . 4 4 Max Kills in Single Turn 3 | 1 1 3 Gunslinging . | . . . Exploded 1 | . 1 1 Melee . | . . . Uniques/NPCs Destroyed . | . . . Combat | -11 -10 -10 -------- Run | Scr Mat Min Damage Taken 2101 | . 812 1289 Core 262 | . 108 154 Absorbed by Shields . | . . . Core Remaining (%) 100 | 100 . . Volleys Fired 218 | 5 72 141 Largest 2 | 2 2 2 Hottest 85 | 40 60 85 Shots Fired 314 | 10 129 175 Gun 245 | 10 124 111 Cannon 58 | . . 58 Launcher 11 | . 5 6 Special . | . . . Kinetic 222 | 10 106 106 Thermal 81 | . 18 63 Explosive 11 | . 5 6 Electromagnetic . | . . . Robot Hit Streak 13 | 6 11 13 Robot Miss Streak 6 | 1 6 4 Penetration Max . | . . . Secondary Targets 1 | . 1 . Max Gunslinging Chain 1 | . 1 . Shots Hit Robots 178 | 8 84 86 Core Hits 81 | 1 33 47 Critical Hits 1 | . . 1 Critical Kills . | . . . Critical Parts Destroyed 1 | . . 1 Melee Attacks . | . . . Impact . | . . . Slashing . | . . . Piercing . | . . . Sneak Attacks . | . . . Combat Hostiles . | . . . Follow-up Attacks . | . . . Damage Inflicted 2947 | 107 1291 1549 Guns 2188 | 107 1077 1004 Cannons 140 | . . 140 Explosions 602 | . 211 391 Melee . | . . . Ramming 17 | . 3 14 Kinetic 1525 | 107 906 512 Thermal 803 | . 171 632 Explosive 602 | . 211 391 Electromagnetic . | . . . Impact . | . . . Slashing . | . . . Piercing . | . . . Highest Corruption 5 | . . 5 Average Corruption 5 | . . 5 Corruption Purged . | . . . Effects 25 | . . 25 Message Errors 4 | . . 4 Matter Fused 9 | . . 9 Heat Flow Errors 6 | . . 6 Energy Discharges 4 | . . 4 Data Loss (minor) 1 | . . 1 Misfires 1 | . . 1 Overload Shots . | . . . Overflow Damage 26 | . . 26 Projectiles . | . . . Explosions 26 | . . 26 Melee . | . . . Knockbacks 1 | . . 1 Impact . | . . . Kinetic 1 | . . 1 Secondary . | . . . Self-Inflicted Damage 90 | . . 90 Shots 3 | . . 3 Rammed 5 | . 2 3 Targets Rammed 5 | . 2 3 Kicked . | . . . Crushed . | . . . Highest Temperature 386 | . 46 386 Average Temperature 91 | . 11 111 Received Heat Transfer 962 | . 450 512 Siege Activations . | . . . Robots Corrupted . | . . . Combat Hostiles . | . . . Parts Fried . | . . . Impact Corruptions . | . . . Robots Melted . | . . . Combat Hostiles . | . . . Parts Melted . | . . . Heat Transferred 1793 | . 375 1418 Parts Sabotaged . | . . . Parts Stolen . | . . . Parts Stripped . | . . . Power Chain Reactions . | . . . Missiles Intercepted . | . . . Alert | -11 -10 -10 ------- Run | Scr Mat Min Peak Influence 260 | 5 199 260 Initial 10 | . 3 10 Average 56 | 1 79 42 Maximum Alert Level 1 | . . 1 Low Security (%) 98 | 100 100 97 Level 1 1 | . . 2 Level 2 . | . . . Level 3 . | . . . Level 4 . | . . . Level 5 . | . . . High Security . | . . . Max Security . | . . . Squads Dispatched 2 | . 2 . Investigation . | . . . Extermination . | . . . Reinforcement 2 | . 2 . Assault . | . . . Garrison . | . . . Intercept . | . . . Construction Impeded . | . . . Haulers Reinforced . | . . . Stealth | -11 -10 -10 --------- Run | Scr Mat Min Distress Signals 5 | . 3 2 Communications Jammed . | . . . Distress Signals . | . . . Times Spotted 59 | . 29 30 Peak Tracking Total 5 | . 5 3 Tactical Retreats 6 | . . 6 Traps | -11 -10 -10 ------- Run | Scr Mat Min Traps Triggered . | . . . Indirectly . | . . . Trap Hack Attempts . | . . . Triggered . | . . . Disarmed . | . . . Reprogrammed . | . . . Reused . | . . . Traps Extracted . | . . . Installed . | . . . Triggered . | . . . Machines | -11 -10 -10 ---------- Run | Scr Mat Min Machines Disabled 4 | . 3 1 Max in Single Turn 1 | . 1 1 Machines Sabotaged . | . . . Garrisons Compromised . | . . . Overloaded Fab Kills . | . . . Fab Network Shutdowns . | . . . Hacking | -11 -10 -10 --------- Run | Scr Mat Min Machines Accessed 6 | . 6 . Terminals 5 | . 5 . Fabricators . | . . . Repair Stations 1 | . 1 . Recycling Units . | . . . Scanalyzers . | . . . Garrison Access . | . . . Total Hacks 28 | . 28 . Successful 17 | . 17 . Failed 11 | . 11 . Catastrophic . | . . . Database Lockouts . | . . . Manual 6 | . 6 . Terminals 19 | . 19 . Fabricators . | . . . Repair Stations 9 | . 9 . Recycling Units . | . . . Scanalyzers . | . . . Garrison Access . | . . . Terminal Hacks 6 | . 6 . Robot Analysis 1 | . 1 . Prototype ID Bank 4 | . 4 . Branch Access Points 1 | . 1 . Fabricator Hacks . | . . . Repair Station Hacks 9 | . 9 . Scan Component 5 | . 5 . Repair 4 | . 4 . Recycling Unit Hacks . | . . . Scanalyzer . | . . . Garrison Access Hacks . | . . . Unauthorized Hacks 2 | . 2 . Terminals 2 | . 2 . Botnet 1 | . 1 . Operators 1 | . 1 . Fabricators . | . . . Repair Stations . | . . . Recycling Units . | . . . Scanalyzers . | . . . Garrison Access . | . . . Data Cores Recovered . | . . . Used . | . . . Hacking Detections 6 | . 6 . Full Trace Events . | . . . Feedback Events . | . . . Feedback Blocked . | . . . Robot Schematics Acquired . | . . . Robots Built . | . . . Matter . | . . . Time . | . . . Total Robot Build Rating . | . . . Part Schematics Acquired . | . . . Parts Built . | . . . Matter . | . . . Time . | . . . Total Part Build Rating . | . . . Parts Repaired 4 | . 4 . Time 104 | . 104 . Parts Recycled . | . . . Recycled Matter . | . . . Retrieved Matter . | . . . Retrieved Components . | . . . Parts Scanalyzed . | . . . Part Schematics Acquired . | . . . Parts Damaged . | . . . Bothacking | -11 -10 -10 ------------ Run | Scr Mat Min Used RIF Installer . | . . . Robots Hacked . | . . . Non-combat . | . . . Combat . | . . . Robot Hacks Applied . | . . . Relay Couplers Released . | . . . Robots Rewired . | . . . Allies Hacked . | . . . Hacks Repelled . | . . . Allies | -11 -10 -10 -------- Run | Scr Mat Min Total Allies 3 | . . 3 Largest Group 3 | . . 3 Highest-Rated Group 40 | . . 40 Highest-Rated Ally 16 | . . 16 Total Orders . | . . . Ally Attacks 14 | . . 14 Total Damage 110 | . . 110 Kills 3 | . . 3 Allies Corrupted . | . . . Allies Melted . | . . . Intel | -11 -10 -10 ------- Run | Scr Mat Min Robot Analysis Total 1 | . 1 . Derelict Logs Recovered 2 | . . 2 Drone Launches . | . . . Drone Recoveries . | . . . Exploration | -11 -10 -10 ------------- Run | Scr Mat Min Turns Passed 3582 | 112 1504 1966 Spaces Moved 1553 | 61 736 756 Core 5 | 5 . . Treads 813 | . 373 440 Legs 735 | 56 363 316 Wheels . | . . . Hover . | . . . Flight . | . . . Fastest Speed 50 | 50 120 180 Average Speed 172 | 114 156 193 Slowest Speed 220 | 120 180 220 Overloaded Moves . | . . . Propulsion Burnouts . | . . . Robots Hopped . | . . . Cave-ins Triggered . | . . . Exploration Rate (%) 62 | 4 89 94 Regions Visited 2 Branch Regions 1 Pre-discovered Areas 1 | . . 1 Known Exits Taken 1 | . 1 . Unknown Exits Taken 1 | 1 . . Scrap Searched 3 | . . 3 Spaces Dug . | . . . Terrain Destroyed 75 | . 17 58 Melee . | . . . Projectile . | . . . AOE 75 | . 17 58 Terrain Rammed . | . . . Walls Destroyed . | . . . Machines Disabled . | . . . Actions | -11 -10 -10 --------- Run | Scr Mat Min Total 2127 | 90 951 1086 Wait 278 | 15 111 152 Move 1551 | 60 735 756 Hop . | . . . Pick Up 29 | 4 13 12 Fast Attach 12 | 6 4 2 Attach 12 | . 4 8 Detach . | . . . Swap 13 | . 7 6 Drop 9 | . 3 6 Fire 218 | 5 72 141 Melee . | . . . Ram . | . . . Kick 2 | . . 2 Crush 3 | . 2 1 Escape Stasis . | . . . Rewire . | . . . Trap . | . . . Miscellaneous . | . . . Route ------- -11/Scrapyard -10/Materials (discovered 4 exits: [*Mat x2] / *Min x2) -10/Mines (discovered 2 exits: [*Mat x2]) History --------- Turn | Location | Event 2 | -11/Scrapyard | Met Revision 17 4 | -11/Scrapyard | Discovered new exit (range 15) 113 | -11/Scrapyard | Entered Materials 311 | -10/Materials | Build established: Mutant 327 | -10/Materials | Discovered new exit (range 6) 378 | -10/Materials | Discovered new exit (range 15) 585 | -10/Materials | Identified exit to Mines 773 | -10/Materials | Lost 4 parts (1p2n1w) 874 | -10/Materials | Repaired Aluminum Leg 901 | -10/Materials | Repaired Assault Rifle 928 | -10/Materials | Repaired Lgt. Treads 956 | -10/Materials | Repaired Lgt. Treads 975 | -10/Materials | Discovered new exit (range 8) 1091 | -10/Materials | Build established: Hauler-Mutant 1513 | -10/Materials | Discovered new exit (range 10) 1617 | -10/Materials | Entered Mines 1677 | -10/Mines | Discovered new exit (range 13) 1695 | -10/Mines | Core integrity fell below 50% 2077 | -10/Mines | Lost 5 parts (1p4w) 2217 | -10/Mines | Discovered new exit (range 7) 2344 | -10/Mines | Learned Materials terminal intel 2511 | -10/Mines | Excavation squad dispatched 2511 | -10/Mines | A large section of the Mines collapsed 2782 | -10/Mines | Core integrity fell below 20% 3016 | -10/Mines | Assisted by bots powering up and referring to "LRC-V3" 3583 | -10/Mines | Destroyed by G-47 Trooper with Particle Gun Last Messages --------------- 03354_ U-05 Engineer lays Concrete. 03356_ U-05 Engineer builds a Wall. 03364_ U-05 Engineer lays Concrete. 03372_ U-05 Engineer builds a Wall. 03385_ U-05 Engineer lays Concrete. 03386_ U-05 Engineer builds a Wall. 03388_ System corrupted: Energy discharge (-43). 03389_ U-05 Engineer builds a Wall. 03394_ U-05 Engineer lays Concrete. 03401_ U-05 Engineer builds a Wall. 03405_ System corrupted: Heat flow error (+223). 03434_ System corrupted: Component data lost. 03455_ System corrupted: Matter fused (-10). 03495_ Trooper 1b destroyed. 03502_ Destroyed Sml. Laser. 03514_ KR#G>OKJUEC5 03537_ System corrupted: Matter fused (-5). 03561_ Sml. Laser destroyed. 03567_ System corrupted: Energy discharge (-27). 03567_ Lgt. Ion Engine destroyed. Map ----- +----------------------------------------------------+ | ????????????????????????????# #????????????? | | ????????????????????????????# #????#####???? | | ????????????????????????????# #????# #???? | | #????????????????????####??## #????# ==#???? | | #???????????????????## #### #??????#!!#???? | | #??????????????????## #??????#= #???? | | #??????????????????# ##?????#= #???? | | ???????????????????# "" ###???# =#???? | | ??????????????????## " ##### #???? | | ##????????????????# ==*## #???? | | #????????????????# =*#### # ## #???? | | #????????????????#%*##??## ## ## #???? | | #???????????????## =#????# ## ## #???? | | #???????????????#" =#????## ### ## #???? | | #???????????????# #?????#### #### ##??? | | ####????????????"" %#????????### ### ##?? | | #???????????#" ###??????????# #?? | | ### #???????????# ?????????????# ##? | | ??# #??????????# ?????????????#### #? | | ??# #??????????# #????????????### #? | | ??# #??????????## #??????????### ##? | | ??# #???????????# ##?????????## ##?? | | ??# #???????????# #?????????## ## ###??? | | ??# #???????????# #???????### ### #????? | | ??# #?????????### ######### ##?# #????? | | ??# #?????????# g @ ## #??# #????? | | ??# #?????????# ########## ### #??# #????? | | ??# #??######## #????????## ##?# #### #????? | | ### #??# #?????????######??# ## #????? | | ## #??# #######?????????????????# ####????? | | !## #??# ##??????????????????????#### #???????? | | ## ##?# ##????????????????#######?# #???????? | | = #?# ##???????????????# #?# #???????? | | #### #?# #???????????????# ### #???????? | | ???# #?# #???????????????# """ #???????? | | ???# #?# ##???????????????# """ #####???????? | | ???# #### ##????????????????# """ #???????????? | | ???# ## ##?????????????????# """ #???????????? | | ???### ## #??????????????????# #???????????? | | ?????# ## #??????????????????### ##???????????? | | ?????# ## #????????????????????# #??######????? | | #????# #????????????????????# #?## ##???? | | ##???#### #????????????????##### ### #???? | | #??????# #????????????????# ## ##??? | | #??????# #?????####???????# ### ## ##?? | | ##??????#=#?????# ????#### ### ##? | | #???????#%! ????# #????# # #### #? | | ????????#### #?## #????# #######??# #? | | ????????????? ? ###### < #????????# ##? | | ??????????????### ? # #????????# ###?? | +----------------------------------------------------+ Best States ------------- Heat Dissipation 25 Energy Generation 14 Energy Capacity 250 Matter Stores 300 Matter Capacity 300 Sight Range 16 Terrain Scan Density 10 Evasion (%) 40 Recoil Reduction 2 Item Schematics ----------------- None Robot Schematics ------------------ None Fabricated ------------ Nothing Alien Tech Used ----------------- None Achievements -------------- None Challenges ------------ None Game ------ Seed MeleeRegenerativeGenerator Manual? 0 Play Time 00:16:36 Cumulative 103.8 hours Start 2020.09.15 @ 22:55:49 End 2020.09.15 @ 23:11:55 Sessions 1 Manual Loads 0 Difficulty Rogue Special Mode None Game No. 127 Rogue 127 Adventurer 0 Explorer 0 Win Type - Total 0 Types 0/0/0/0/0/0/0/0/0 Lore% 56 Gallery% 66 Achievement% 48 Wizard Run 0 Options --------- ASCII 0 Keyboard 1 Movement Numpad Keybinds 0 Fullscreen 2 Font 18/SmallcapsGlow Map View 76x50 Tactical HUD 1 Map Filters NONE Filters NONE Steam 1 RUN: 51fdf75d-a72d-45bf-8d99-45c58ebf1ead